bitfinex-derivatives/quotes_BTCF0:USTF0_20240925
["timestamp","ask_amount","ask_price","bid_price","bid_amount"]
[1727267945156,0.09,63742.0,63741.0,0.078438]
[1727267945465,0.0036,63746.0,63745.0,0.078433]
[1727267945667,0.0036,63750.0,63745.0,0.69175511]
[1727267945966,0.0936,63750.0,63749.0,0.078428]
[1727267946163,0.09,63750.0,63749.0,0.28236175]
[1727267946467,0.09,63750.0,63749.0,0.078428]
[1727267946869,0.09,63750.0,63749.0,0.15665973]
[1727267947467,0.09,63750.0,63749.0,0.14096234]
[1727267947654,0.09,63750.0,63749.0,0.078428]
[1727267947851,0.09,63750.0,63749.0,0.079428]
[1727267950168,0.09,63750.0,63749.0,0.078428]
[1727267960788,0.0358,63754.0,63753.0,0.078423]
[1727267961081,0.0036,63760.0,63752.0,0.09]
[1727267961263,0.41610102,63761.0,63760.0,0.078415]
[1727267963983,0.49451402,63761.0,63760.0,0.078415]
[1727267964280,0.50551402,63761.0,63760.0,0.079415]
[1727267966084,0.14471402,63761.0,63760.0,0.079415]
[1727267966273,0.50551402,63761.0,63760.0,0.079415]
[1727267969987,0.50551402,63761.0,63760.0,0.001]
[1727267971388,0.54391979,63761.0,63760.0,0.001]
[1727267971581,0.3082735,63761.0,63760.0,0.001]
[1727267971890,0.6690735,63761.0,63760.0,0.001]
[1727267972186,0.3082735,63761.0,63760.0,0.001]
[1727267972386,0.18311979,63761.0,63760.0,0.001]
[1727267972687,0.54391979,63761.0,63760.0,0.001]
[1727267973388,0.73285675,63761.0,63760.0,0.001]
[1727267974282,0.38770097,63761.0,63760.0,0.001]
[1727267974788,0.74850097,63761.0,63760.0,0.001]
[1727267975481,0.59205883,63761.0,63760.0,0.001]
[1727267975987,0.23125883,63761.0,63760.0,0.001]
[1727267976284,0.74862566,63761.0,63760.0,0.001]
[1727267978185,0.50551402,63761.0,63760.0,0.001]
[1727267978588,0.50551402,63761.0,63760.0,0.04790007]
[1727267978786,0.58392702,63761.0,63760.0,0.001]
[1727267979381,0.67392702,63761.0,63760.0,0.001]
[1727267979787,0.75234002,63761.0,63760.0,0.001]
[1727267979990,0.51710102,63761.0,63759.0,0.04704499]
[1727267980197,0.078416,63759.0,63758.0,0.04704499]
[1727267980383,0.246832,63759.0,63757.0,0.04704499]
[1727267980578,0.246834,63758.0,63757.0,0.04704499]
[1727267982091,0.537217,63758.0,63757.0,0.04804499]
[1727267982494,0.537217,63758.0,63757.0,0.001]
[1727267984190,0.537217,63758.0,63757.0,0.12645782]
[1727267984493,0.537217,63758.0,63757.0,0.04803982]
[1727267984890,0.176417,63758.0,63757.0,0.04803982]
[1727267986184,0.008,63758.0,63757.0,0.14195143]
[1727267986386,0.008,63758.0,63757.0,0.157836]
[1727267986585,0.0036,63762.0,63761.0,0.156826]
[1727267986889,0.031,63770.0,63765.0,0.078408]
[1727267986890,0.0026,63768.0,63765.0,0.078408]
[1727267987084,0.0026,63768.0,63765.0,0.2782075]
[1727267987294,0.0026,63768.0,63767.0,0.078406]
[1727267987490,0.0026,63768.0,63767.0,0.2666115]
[1727267987704,0.0026,63768.0,63767.0,1.5962735]
[1727267988387,0.0026,63768.0,63767.0,1.39240645]
[1727267988596,0.0026,63768.0,63767.0,1.50135238]
[1727267989189,0.0106,63768.0,63767.0,1.50235238]
[1727267990304,0.0106,63768.0,63767.0,0.90217231]
[1727267990901,0.0106,63768.0,63767.0,0.43173231]
[1727267991095,0.0106,63768.0,63767.0,0.90217231]
[1727267991291,0.0106,63768.0,63767.0,0.79322638]
[1727267992389,0.0106,63768.0,63767.0,0.71500045]
[1727267992895,0.0106,63768.0,63767.0,0.24456045]
[1727267993304,0.04899549,63768.0,63767.0,0.24456045]
[1727267993499,0.04899549,63768.0,63767.0,0.079406]
[1727267996001,0.12740049,63768.0,63767.0,0.079406]
[1727267998410,0.12740233,63768.0,63767.0,0.079406]
[1727268000407,0.25265464,63768.0,63767.0,0.001]
[1727268000621,0.078416,63760.0,63759.0,0.078415]
[1727268000911,0.12467021,63760.0,63759.0,0.078415]
[1727268001298,0.09,63762.0,63761.0,0.078413]
[1727268001299,0.168412,63762.0,63761.0,0.078413]
[1727268002701,0.169412,63762.0,63761.0,0.078413]
[1727268003409,0.18795294,63762.0,63761.0,0.078413]
[1727268005404,0.18695294,63762.0,63761.0,0.078413]
[1727268005701,0.18795294,63762.0,63761.0,0.078413]
[1727268011102,0.078418,63759.0,63758.0,0.078417]
[1727268011316,0.168418,63759.0,63758.0,0.078417]
[1727268012812,0.168418,63759.0,63758.0,0.080417]
[1727268014211,0.078418,63759.0,63758.0,0.080417]
[1727268015113,0.078418,63759.0,63758.0,0.078417]
[1727268015516,0.078418,63759.0,63758.0,0.14096265]
[1727268015827,0.078418,63759.0,63758.0,0.14196265]
[1727268017025,0.078418,63759.0,63758.0,0.14296265]
[1727268018511,0.078418,63759.0,63758.0,0.080417]
[1727268018724,0.078418,63759.0,63758.0,0.14301391]
[1727268019123,0.078418,63759.0,63758.0,0.080417]
[1727268019326,0.078418,63759.0,63758.0,0.078417]
[1727268019626,0.078418,63759.0,63758.0,0.079417]
[1727268020530,0.078418,63759.0,63758.0,0.080417]
[1727268022224,0.078418,63759.0,63757.0,0.06261553]
[1727268022225,0.156834,63758.0,63757.0,0.06261553]
[1727268022524,0.09,63759.0,63753.0,0.07822593]
[1727268022525,0.078422,63754.0,63753.0,0.06261553]
[1727268022827,0.078422,63754.0,63752.0,0.06261553]
[1727268022828,0.078423,63753.0,63752.0,0.06261553]
[1727268023017,0.168423,63753.0,63752.0,0.06261553]
[1727268023412,0.078427,63750.0,63749.0,0.078428]
[1727268023814,0.078427,63750.0,63746.0,0.01807456]
[1727268023815,0.0313,63752.0,63746.0,0.01807456]
[1727268024121,0.0313,63752.0,63745.0,0.3372544]
[1727268024122,0.109724,63752.0,63751.0,0.078426]
[1727268024327,0.081423,63754.0,63753.0,0.078423]
[1727268024712,0.081423,63754.0,63753.0,0.168423]
[1727268024713,0.003,63754.0,63753.0,0.168423]
[1727268025117,0.003,63754.0,63753.0,0.246846]
[1727268025516,0.003,63754.0,63753.0,0.41293366]
[1727268025714,0.0037,63758.0,63757.0,0.078418]
[1727268025918,0.442913,63761.0,63760.0,0.078415]
[1727268026134,0.439213,63761.0,63760.0,0.168415]
[1727268027718,0.439213,63761.0,63760.0,0.078415]
[1727268029626,0.469813,63761.0,63760.0,0.078415]
[1727268031826,0.109013,63761.0,63760.0,0.078415]
[1727268032821,0.110013,63761.0,63760.0,0.078415]
[1727268033525,0.109013,63761.0,63760.0,0.078415]
[1727268034122,0.110013,63761.0,63760.0,0.078415]
[1727268036437,0.0316,63761.0,63760.0,0.078415]
[1727268037028,0.110013,63761.0,63760.0,0.078415]
[1727268037425,0.109013,63761.0,63760.0,0.078415]
[1727268037630,0.110013,63761.0,63760.0,0.078415]
[1727268037833,0.0316,63761.0,63760.0,0.078415]
[1727268038030,0.001,63761.0,63760.0,0.218415]
[1727268039839,0.09664008,63762.0,63761.0,0.078413]
[1727268040538,0.09664008,63762.0,63761.0,0.14113268]
[1727268041131,0.09864008,63762.0,63761.0,0.14113268]
[1727268041327,0.02022708,63762.0,63761.0,0.14113268]
[1727268041635,0.02022708,63762.0,63761.0,0.078413]
[1727268045432,0.10677414,63762.0,63761.0,0.078413]
[1727268045631,0.10677413,63762.0,63761.0,0.078413]
[1727268047730,0.18518613,63762.0,63761.0,0.078413]
[1727268048342,0.27518613,63762.0,63761.0,0.078413]
[1727268049145,0.19677413,63762.0,63761.0,0.078413]
[1727268049637,0.36798298,63762.0,63761.0,0.078413]
[1727268049839,0.078419,63759.0,63758.0,0.078417]
[1727268050038,0.20682577,63759.0,63758.0,0.078417]
[1727268051541,0.168419,63759.0,63758.0,0.080417]
[1727268052239,0.0311,63760.0,63759.0,0.078416]
[1727268052445,0.0311,63760.0,63759.0,0.168416]
[1727268054645,0.0311,63760.0,63759.0,0.24664193]
[1727268055233,0.109515,63760.0,63759.0,0.24664193]
[1727268055442,0.109515,63760.0,63759.0,0.15664193]
[1727268056040,0.109515,63760.0,63759.0,0.078416]
[1727268056343,0.109515,63760.0,63759.0,0.18806474]
[1727268056344,0.199515,63760.0,63759.0,0.18806474]
[1727268057445,0.199515,63760.0,63759.0,0.26653234]
[1727268057647,0.27793,63760.0,63759.0,0.18811634]
[1727268057843,0.27793,63760.0,63759.0,0.0784676]
[1727268058146,0.27793,63760.0,63752.0,0.0036]
[1727268058147,0.078417,63758.0,63757.0,0.0784676]
[1727268058345,0.078417,63758.0,63757.0,0.18815806]
[1727268058346,0.607634,63758.0,63757.0,0.18815806]
[1727268058536,0.638334,63758.0,63757.0,0.0784676]
[1727268059435,0.078418,63757.0,63756.0,0.0784676]
[1727268059631,0.168418,63757.0,63756.0,0.0784676]
[1727268060540,0.078421,63755.0,63754.0,0.078422]
[1727268061132,0.078426,63752.0,63751.0,0.078425]
[1727268061338,0.168426,63752.0,63751.0,0.078425]
[1727268062642,0.169426,63752.0,63751.0,0.084425]
[1727268064560,0.169426,63752.0,63751.0,0.006]
[1727268067456,0.530226,63752.0,63751.0,0.006]
[1727268067639,0.530226,63752.0,63745.0,0.0036]
[1727268067844,0.078431,63747.0,63746.0,0.078432]
[1727268068445,0.168431,63747.0,63746.0,0.078432]
[1727268068646,0.12919041,63747.0,63746.0,0.28207619]
[1727268069154,0.12919041,63747.0,63746.0,0.18800032]
[1727268069544,0.13019041,63747.0,63746.0,0.19900032]
[1727268078063,0.13019041,63747.0,63746.0,0.1985001]
[1727268083059,0.13019041,63747.0,63746.0,0.1984475]
[1727268083658,0.13019041,63747.0,63746.0,0.089432]
[1727268088467,0.49099041,63747.0,63746.0,0.089432]
[1727268090565,0.49099041,63747.0,63746.0,0.19871149]
[1727268092873,0.49099041,63747.0,63746.0,0.19871793]
[1727268093177,0.49099041,63747.0,63746.0,0.19870979]
[1727268093178,0.56942141,63747.0,63746.0,0.19870979]
[1727268093472,0.56942141,63747.0,63746.0,0.011]
[1727268115191,0.67895576,63747.0,63746.0,0.011]
[1727268115693,0.49099041,63747.0,63732.0,0.00803643]
[1727268115894,0.09,63738.0,63733.0,0.078447]
[1727268116993,0.09,63738.0,63737.0,0.078443]
[1727268117389,0.091,63738.0,63737.0,0.078443]
[1727268118389,0.091,63738.0,63737.0,0.088443]
[1727268118688,0.169442,63738.0,63737.0,0.088443]
[1727268119796,0.091,63738.0,63737.0,0.088443]
[1727268120188,0.10877339,63738.0,63737.0,0.088443]
[1727268120397,0.18721539,63738.0,63737.0,0.01]
[1727268120591,0.26565739,63738.0,63737.0,0.01]
[1727268120891,0.29805739,63738.0,63737.0,0.01]
[1727268122198,0.33065739,63738.0,63737.0,0.01]
[1727268123502,0.40909939,63738.0,63737.0,0.01]
[1727268123703,0.33065739,63738.0,63737.0,0.01]
[1727268125005,0.24065739,63738.0,63737.0,0.01]
[1727268125299,0.33065739,63738.0,63737.0,0.01]
[1727268125892,0.16221539,63738.0,63737.0,0.01]
[1727268126087,0.18721539,63738.0,63737.0,0.01]
[1727268130498,0.01877339,63738.0,63737.0,0.088443]
[1727268132692,0.10877339,63738.0,63737.0,0.088443]
[1727268135289,0.01877339,63738.0,63737.0,0.088443]
[1727268135495,0.01877339,63738.0,63737.0,0.178443]
[1727268135705,0.01877339,63738.0,63737.0,0.727566]
[1727268135904,0.001,63738.0,63737.0,0.791166]
[1727268136104,0.001,63738.0,63737.0,0.824266]
[1727268138907,0.001,63738.0,63737.0,0.353586]
[1727268143713,0.082136,63743.0,63742.0,0.078437]
[1727268143910,0.09645043,63743.0,63742.0,0.14109079]
[1727268145107,0.09745043,63743.0,63742.0,0.14109079]
[1727268145302,0.01901443,63743.0,63742.0,0.14109079]
[1727268145507,0.01901443,63743.0,63742.0,0.078437]
[1727268145707,0.01901443,63743.0,63742.0,0.14109079]
[1727268146615,0.01901443,63743.0,63742.0,0.078437]
[1727268147905,0.01901443,63743.0,63742.0,0.14109079]
[1727268147906,0.09745043,63743.0,63742.0,0.14109079]
[1727268150416,0.12815043,63743.0,63742.0,0.14109079]
[1727268151614,0.12815043,63743.0,63742.0,0.078437]
[1727268152519,0.04971443,63743.0,63742.0,0.078437]
[1727268152719,0.14332866,63743.0,63742.0,0.078437]
[1727268153217,0.04971443,63743.0,63742.0,0.078437]
[1727268154108,0.14334766,63743.0,63742.0,0.078437]
[1727268154316,0.01901443,63743.0,63742.0,0.078437]
[1727268158225,0.01901443,63743.0,63742.0,0.156874]
[1727268158718,0.01901443,63743.0,63742.0,0.26594334]
[1727268159718,0.01901443,63743.0,63742.0,0.72074783]
[1727268159923,0.01901443,63743.0,63742.0,0.62674334]
[1727268161519,0.01901443,63743.0,63742.0,0.75642313]
[1727268162722,0.01901443,63743.0,63742.0,0.81079523]
[1727268163019,0.01901443,63743.0,63742.0,0.88923223]
[1727268163415,0.0037,63749.0,63748.0,0.235287]
[1727268163617,0.0037,63755.0,63754.0,0.156844]
[1727268163817,0.00235376,63756.0,63755.0,0.156842]
[1727268164121,0.0037,63761.0,63760.0,0.078415]
[1727268164317,0.0621,63763.0,63760.0,0.09]
[1727268164725,0.08044957,63763.0,63760.0,0.09]
[1727268165322,0.08044957,63763.0,63762.0,0.14103351]
[1727268165520,0.0314,63763.0,63762.0,0.21944551]
[1727268165730,0.0037,63767.0,63766.0,0.078407]
[1727268165913,0.0327,63770.0,63769.0,0.078404]
[1727268166116,0.0327,63770.0,63769.0,0.168404]
[1727268166416,0.01794183,63772.0,63771.0,0.078401]
[1727268166617,0.1092166,63772.0,63771.0,0.078401]
[1727268166816,0.03212277,63772.0,63771.0,0.078401]
[1727268168119,0.03412277,63772.0,63771.0,0.078401]
[1727268169425,0.002,63772.0,63771.0,0.078401]
[1727268169927,0.018478,63774.0,63773.0,0.078399]
[1727268170129,0.03206207,63774.0,63773.0,0.078399]
[1727268170519,0.3608,63775.0,63773.0,0.078399]
[1727268170726,0.3608,63775.0,63774.0,0.078397]
[1727268170928,0.39285846,63775.0,63774.0,0.078397]
[1727268171224,0.41101031,63775.0,63774.0,0.078397]
[1727268171833,0.37895185,63775.0,63774.0,0.078397]
[1727268172032,0.54734785,63775.0,63774.0,0.078397]
[1727268172823,0.46895185,63775.0,63771.0,0.001]
[1727268173024,0.09,63772.0,63771.0,0.001]
[1727268173625,0.1684,63772.0,63770.0,0.078402]
[1727268174426,0.1704,63772.0,63770.0,0.078402]
[1727268175032,0.1694,63772.0,63770.0,0.078402]
[1727268176333,0.1694,63772.0,63771.0,0.078401]
[1727268177841,0.1704,63772.0,63771.0,0.078401]
[1727268183242,0.26364758,63772.0,63771.0,0.078401]
[1727268185352,0.1704,63772.0,63771.0,0.078401]
[1727268187255,0.20234232,63772.0,63771.0,0.078401]
[1727268187457,0.20234232,63772.0,63771.0,0.076601]
[1727268187657,0.20233789,63772.0,63771.0,0.076601]
[1727268187959,0.1704,63772.0,63771.0,0.076601]
[1727268188264,0.20234021,63772.0,63771.0,0.076601]
[1727268188758,0.1704,63772.0,63771.0,0.076601]
[1727268191466,0.5312,63772.0,63771.0,0.076601]
[1727268192857,0.4528,63772.0,63771.0,0.076601]
[1727268193064,0.002,63772.0,63771.0,0.076601]
[1727268195367,0.002,63772.0,63771.0,0.262971]
[1727268196772,0.002,63772.0,63771.0,0.076601]
[1727268204678,0.07241544,63772.0,63771.0,0.076601]
[1727268205662,0.07241544,63772.0,63771.0,0.166601]
[1727268206977,0.07241544,63772.0,63771.0,0.245002]
[1727268207173,0.07239206,63772.0,63771.0,0.245002]
[1727268207585,0.03399467,63772.0,63771.0,1.57076941]
[1727268207776,0.03399467,63772.0,63771.0,1.57486898]
[1727268207777,0.002,63772.0,63771.0,1.57486898]
[1727268208083,0.09752099,63776.0,63775.0,0.078396]
[1727268208371,0.0079,63782.0,63781.0,0.156778]
[1727268208372,0.0037,63782.0,63781.0,0.156778]
[1727268208579,0.01843214,63787.0,63786.0,0.156766]
[1727268208770,0.10943154,63792.0,63791.0,0.078377]
[1727268208962,0.10943154,63792.0,63789.0,0.09]
[1727268208963,0.03838261,63792.0,63789.0,0.09]
[1727268209166,0.1093164,63793.0,63792.0,0.078375]
[1727268209382,0.1093164,63794.0,63792.0,0.09]
[1727268210178,0.3608,63793.0,63792.0,0.168375]
[1727268212078,0.014,63794.0,63793.0,0.078374]
[1727268213077,0.014,63794.0,63793.0,0.075974]
[1727268213468,0.0318,63797.0,63796.0,0.07837]
[1727268213774,0.0318,63797.0,63796.0,0.16837]
[1727268214977,0.0458,63797.0,63796.0,0.16837]
[1727268216188,0.0458,63797.0,63796.0,0.07837]
[1727268219781,0.07743687,63797.0,63796.0,0.07837]
[1727268220688,0.04563687,63797.0,63796.0,0.16837]
[1727268220877,0.04563687,63797.0,63796.0,1.39535]
[1727268221080,0.04563687,63797.0,63796.0,1.946019]
[1727268221081,0.014,63797.0,63796.0,1.946019]
[1727268222882,0.014,63797.0,63796.0,1.96386946]
[1727268223886,0.0037,63805.0,63804.0,0.078361]
[1727268224192,0.078351,63812.0,63804.0,0.4508]
[1727268224380,0.11052153,63811.0,63810.0,0.078353]
[1727268226683,0.078353,63811.0,63810.0,0.078353]
[1727268226890,0.092353,63811.0,63810.0,0.078353]
[1727268234895,0.24891838,63811.0,63810.0,0.078353]
[1727268235188,0.36746453,63811.0,63810.0,0.078353]
[1727268235391,0.57169915,63811.0,63810.0,0.078353]
[1727268236385,0.7437855,63811.0,63810.0,0.078353]
[1727268236989,0.3829855,63811.0,63810.0,0.078353]
[1727268237184,0.7437855,63811.0,63810.0,0.078353]
[1727268237391,0.57169915,63811.0,63810.0,0.078353]
[1727268238098,0.21089915,63811.0,63810.0,0.078353]
[1727268238293,0.57169915,63811.0,63810.0,0.078353]
[1727268241795,0.453153,63811.0,63810.0,0.078353]
[1727268245599,0.092353,63811.0,63810.0,0.078353]
[1727268245795,0.453153,63811.0,63810.0,0.078353]
[1727268246295,0.453153,63811.0,63810.0,0.168353]
[1727268249307,0.48532497,63811.0,63810.0,0.168353]
[1727268253391,0.59457911,63811.0,63810.0,0.168353]
[1727268253604,0.078359,63805.0,63804.0,0.08206]
[1727268253805,0.078359,63805.0,63804.0,0.07836]
[1727268254005,0.078364,63802.0,63801.0,0.078364]
[1727268254305,0.078364,63802.0,63801.0,0.25201632]
[1727268254505,0.078364,63802.0,63801.0,0.17365232]
[1727268254707,0.09,63802.0,63800.0,0.3608]
[1727268255005,0.43916,63805.0,63800.0,0.3608]
[1727268255006,0.108864,63801.0,63800.0,0.3608]
[1727268255320,0.108864,63801.0,63800.0,0.439165]
[1727268255321,0.06241766,63801.0,63800.0,0.439165]
[1727268255507,0.0305,63801.0,63800.0,0.439165]
[1727268256501,0.05826688,63801.0,63800.0,0.439165]
[1727268256903,0.10637145,63801.0,63800.0,0.439165]
[1727268257105,0.13843098,63801.0,63800.0,0.439165]
[1727268257300,0.17680926,63801.0,63800.0,0.439165]
[1727268259007,0.17680926,63801.0,63800.0,0.078365]
[1727268262497,0.33301012,63801.0,63800.0,0.078365]
[1727268263907,0.21445967,63801.0,63800.0,0.078365]
[1727268264099,0.05826688,63801.0,63800.0,0.078365]
[1727268265307,0.13663088,63801.0,63800.0,0.078365]
[1727268271216,0.49743088,63801.0,63800.0,0.078365]
[1727268271905,0.41906688,63801.0,63800.0,0.078365]
[1727268272116,0.53751639,63801.0,63800.0,0.078365]
[1727268273414,0.17671639,63801.0,63800.0,0.078365]
[1727268277804,0.17669669,63801.0,63800.0,0.078365]
[1727268278917,0.25506069,63801.0,63800.0,0.078365]
[1727268279223,0.13663088,63801.0,63800.0,0.078365]
[1727268282420,0.05826688,63801.0,63800.0,0.078365]
[1727268285420,0.14826688,63801.0,63800.0,0.078365]
[1727268286020,0.14826688,63801.0,63799.0,0.0470463]
[1727268286021,0.078365,63800.0,63799.0,0.0470463]
[1727268286322,0.03177981,63800.0,63797.0,0.078369]
[1727268286514,0.07837,63796.0,63795.0,0.00235126]
[1727268286916,1.10187627,63796.0,63788.0,0.0037]
[1727268287118,0.09,63798.0,63785.0,0.06274236]
[1727268287119,0.078381,63787.0,63786.0,0.0470463]
[1727268287322,0.078381,63787.0,63785.0,0.1254303]
[1727268287323,0.168381,63787.0,63785.0,0.1254303]
[1727268287526,0.0325,63786.0,63785.0,0.078384]
[1727268287829,0.0325,63786.0,63782.0,0.04700807]
[1727268288127,0.0325,63786.0,63780.0,0.07839]
[1727268288128,0.09,63782.0,63780.0,0.07839]
[1727268288515,0.439187,63783.0,63780.0,0.07839]
[1727268288829,0.078387,63783.0,63780.0,0.07839]
[1727268289014,0.09692754,63783.0,63782.0,0.078388]
[1727268289523,0.01854054,63783.0,63782.0,0.078388]
[1727268289829,0.09,63784.0,63782.0,0.078388]
[1727268290323,0.001,63783.0,63782.0,0.082388]
[1727268291015,0.10933964,63784.0,63782.0,0.082388]
[1727268292013,0.078386,63783.0,63782.0,0.082388]
[1727268293020,0.079386,63783.0,63782.0,0.082388]
[1727268293930,0.001,63783.0,63782.0,0.082388]
[1727268294231,0.11038673,63783.0,63782.0,0.082388]
[1727268294427,0.001,63783.0,63782.0,0.082388]
[1727268294824,0.091,63783.0,63782.0,0.082388]
[1727268296415,0.169386,63783.0,63782.0,0.082388]
[1727268296620,0.169386,63783.0,63782.0,0.004]
[1727268297318,0.20777925,63783.0,63782.0,0.004]
[1727268297625,0.078393,63778.0,63777.0,0.08074486]
[1727268297822,0.168393,63778.0,63777.0,0.08074486]
[1727268298720,0.529193,63778.0,63777.0,0.08074486]
[1727268298915,0.168393,63778.0,63777.0,0.08074486]
[1727268299832,0.529193,63778.0,63777.0,0.08074486]
[1727268300225,0.529193,63778.0,63777.0,0.00235186]
[1727268300438,0.168393,63778.0,63777.0,0.00235186]
[1727268300644,0.169393,63778.0,63777.0,0.00235186]
[1727268301939,0.169393,63778.0,63777.0,0.08074586]
[1727268304442,0.079393,63778.0,63777.0,0.08074586]
[1727268304936,0.169393,63778.0,63777.0,0.08074586]
[1727268306638,0.169393,63778.0,63777.0,0.078394]
[1727268307131,0.091,63778.0,63774.0,0.12540507]
[1727268307330,0.168396,63775.0,63774.0,0.078397]
[1727268308628,0.0784,63772.0,63771.0,0.078401]
[1727268308829,0.5292,63772.0,63771.0,0.078401]
[1727268309929,0.4508,63772.0,63771.0,0.078401]
[1727268310235,0.46854754,63772.0,63771.0,0.078401]
[1727268310950,0.46954754,63772.0,63771.0,0.078401]
[1727268312542,0.10874754,63772.0,63771.0,0.078401]
[1727268312734,0.46954754,63772.0,63771.0,0.078401]
[1727268313926,0.10874754,63772.0,63771.0,0.078401]
[1727268314123,0.46954754,63772.0,63771.0,0.078401]
[1727268317843,0.47254754,63772.0,63771.0,0.078401]
[1727268318231,0.47254754,63772.0,63769.0,0.078403]
[1727268318542,0.47254754,63772.0,63771.0,0.04698021]
[1727268318933,0.55094754,63772.0,63771.0,0.04698021]
[1727268320435,0.078401,63771.0,63770.0,0.04697989]
[1727268321540,0.078402,63770.0,63769.0,0.078403]
[1727268322933,0.439202,63770.0,63769.0,0.078403]
[1727268323831,0.443202,63770.0,63769.0,0.078403]
[1727268324532,0.078406,63768.0,63767.0,0.078406]
[1727268324740,0.168406,63768.0,63767.0,0.078406]
[1727268327248,0.174406,63768.0,63767.0,0.078406]
[1727268332839,0.006,63768.0,63767.0,0.078406]
[1727268337943,0.006,63768.0,63767.0,0.156812]
[1727268338746,0.006,63768.0,63767.0,0.246812]
[1727268338949,0.006,63768.0,63767.0,0.278212]
[1727268339249,0.006,63768.0,63767.0,0.35647793]
[1727268340057,0.007,63768.0,63767.0,0.35647793]
[1727268340356,0.007,63768.0,63767.0,0.46556594]
[1727268340551,0.0037,63776.0,63767.0,1.68559057]
[1727268340749,0.0037,63780.0,63779.0,0.156782]
[1727268340953,0.0037,63789.0,63782.0,0.078388]
[1727268341157,0.0037,63789.0,63782.0,0.18733594]
[1727268341559,0.01810523,63786.0,63782.0,0.18733594]
[1727268342348,0.01810523,63786.0,63782.0,0.28127773]
[1727268342647,0.00535265,63783.0,63782.0,0.18733594]
[1727268343050,0.00535265,63783.0,63782.0,0.26572394]
[1727268343450,0.00535265,63783.0,63782.0,0.26484347]
[1727268343648,0.00535265,63783.0,63782.0,0.34304479]
[1727268344453,0.00235265,63783.0,63782.0,0.23797732]
[1727268344655,0.00235265,63783.0,63782.0,0.159776]
[1727268344850,0.00235265,63783.0,63782.0,0.165776]
[1727268345049,0.00335265,63783.0,63782.0,0.169776]
[1727268346954,0.00335265,63783.0,63782.0,0.14788782]
[1727268347156,0.001,63783.0,63782.0,0.090388]
[1727268348250,0.18341265,63786.0,63785.0,0.078384]
[1727268348463,0.09,63786.0,63785.0,0.078384]
[1727268351165,0.09,63786.0,63785.0,0.079384]
[1727268352762,0.09,63786.0,63785.0,0.080384]
[1727268353769,0.09,63786.0,63785.0,0.081384]
[1727268354373,0.09,63786.0,63785.0,0.12726024]
[1727268354664,0.09,63786.0,63785.0,0.12626024]
[1727268358363,0.09,63786.0,63785.0,0.12526024]
[1727268358563,0.09,63786.0,63785.0,0.12626024]
[1727268359575,0.09,63786.0,63785.0,0.079384]
[1727268360376,0.09,63786.0,63785.0,0.12623126]
[1727268360566,0.168383,63786.0,63785.0,0.079384]
[1727268360772,0.168383,63786.0,63785.0,0.12623536]
[1727268361170,0.168383,63786.0,63785.0,0.079384]
[1727268362263,0.201083,63786.0,63785.0,0.079384]
[1727268362463,0.1227,63786.0,63785.0,0.079384]
[1727268362664,0.1237,63786.0,63785.0,0.078384]
[1727268363278,0.1237,63786.0,63785.0,0.12523536]
[1727268364059,0.1237,63786.0,63785.0,0.04685136]
[1727268364265,0.1237,63786.0,63777.0,0.08190132]
[1727268364266,0.1237,63786.0,63778.0,0.06249982]
[1727268364467,0.078393,63778.0,63777.0,0.0037]
[1727268364678,0.09,63779.0,63771.0,0.06249982]
[1727268364881,0.3608,63782.0,63770.0,0.06249982]
[1727268364882,0.09,63772.0,63770.0,0.06249982]
[1727268365174,0.02377382,63771.0,63770.0,0.06249982]
[1727268365364,0.02377382,63771.0,63769.0,0.06249982]
[1727268365570,0.09,63770.0,63769.0,0.06249982]
[1727268366272,0.09,63770.0,63768.0,0.06249982]
[1727268366875,0.09,63770.0,63766.0,0.078407]
[1727268366876,0.09,63770.0,63767.0,0.06249982]
[1727268367173,0.09,63768.0,63766.0,0.078407]
[1727268367469,0.09,63768.0,63767.0,0.06255082]
[1727268368065,0.09,63768.0,63766.0,0.06255082]
[1727268368380,0.09,63768.0,63761.0,0.3645]
[1727268368381,0.078408,63765.0,63764.0,0.06255082]
[1727268368581,0.168408,63765.0,63764.0,0.06255082]
[1727268368769,0.09,63765.0,63761.0,0.42335082]
[1727268368967,0.09,63762.0,63761.0,0.3608]
[1727268369275,0.168412,63762.0,63761.0,0.3608]
[1727268370167,0.18637251,63762.0,63761.0,0.3608]
[1727268370771,0.18637251,63762.0,63755.0,0.078421]
[1727268370772,0.078414,63761.0,63755.0,0.078421]
[1727268370972,0.09,63756.0,63755.0,0.078421]
[1727268372281,0.091,63756.0,63755.0,0.085421]
[1727268372471,0.091,63756.0,63755.0,0.091421]
[1727268378784,0.16942,63756.0,63755.0,0.091421]
[1727268380973,0.16942,63756.0,63755.0,0.013]
[1727268381378,0.24784,63756.0,63755.0,0.013]
[1727268382770,0.24784,63756.0,63748.0,0.0037]
[1727268382771,0.078428,63749.0,63748.0,0.0037]
[1727268383075,0.078434,63744.0,63743.0,0.36248]
[1727268383271,0.078434,63744.0,63743.0,0.3608]
[1727268383272,0.168434,63744.0,63743.0,0.3608]
[1727268384092,0.155434,63744.0,63743.0,0.3608]
[1727268384976,0.156434,63744.0,63743.0,0.3818]
[1727268386186,0.156434,63744.0,63743.0,0.021]
[1727268389684,0.066434,63744.0,63743.0,0.021]
[1727268389885,0.156434,63744.0,63743.0,0.021]
[1727268390085,0.156434,63744.0,63743.0,0.099436]
[1727268391986,0.091,63744.0,63743.0,0.099436]
[1727268396286,0.091,63744.0,63743.0,0.16198682]
[1727268396989,0.169434,63744.0,63743.0,0.08355082]
[1727268397190,0.169434,63744.0,63743.0,0.021]
[1727268397378,0.169434,63744.0,63743.0,0.08355082]
[1727268398390,0.169434,63744.0,63743.0,0.021]
[1727268399390,0.718508,63744.0,63743.0,0.021]